bitfinex/quotes_SOLUSD_20250922
["timestamp","ask_amount","ask_price","bid_price","bid_amount"]
[1758539205713,2.11389527,222.75,222.72,0.69]
[1758539206036,6.60339084,222.75,222.71,35.02]
[1758539206215,6.60339084,222.75,222.72,0.69]
[1758539206415,2.11389527,222.73,222.69,81.29]
[1758539206645,2.11389527,222.73,222.67,32.60474741]
[1758539206646,2.11389527,222.73,222.7,35.71]
[1758539207138,4.48949557,222.75,222.71,0.69]
[1758539207341,2.11389527,222.74,222.7,35.02]
[1758539207629,2.11389527,222.74,222.71,0.69]
[1758539207819,2.11389527,222.74,222.7,35.02]
[1758539208017,6.60353777,222.74,222.72,0.69]
[1758539208526,4.48926911,222.76,222.73,0.69]
[1758539208717,6.60316438,222.76,222.73,0.69]
[1758539208922,2.11389527,222.75,222.71,0.69]
[1758539209219,2.11389527,222.75,222.72,0.69]
[1758539209633,4.48926911,222.76,222.72,0.69]
[1758539209819,6.60316438,222.76,222.73,0.69]
[1758539210007,6.60316438,222.76,222.74,0.69]
[1758539210317,6.60316438,222.76,222.72,0.69]
[1758539210517,6.60316438,222.76,222.73,0.69]
[1758539211627,2.11389527,222.75,222.73,0.69]
[1758539212005,2.11389527,222.74,222.7,35.0]
[1758539212207,2.11389527,222.74,222.7,0.69]
[1758539212518,2.11389527,222.74,222.7,35.69]
[1758539212721,2.11389527,222.74,222.71,0.69]
[1758539212917,6.60348413,222.74,222.68,6.60451524]
[1758539213219,6.60348413,222.74,222.69,35.69]
[1758539213539,4.48958886,222.74,222.7,0.69]
[1758539215608,4.48958886,222.74,222.71,0.69]
[1758539215809,4.48958886,222.74,222.72,0.69]
[1758539216458,4.48932483,222.76,222.73,0.69]
[1758539216612,2.11389527,222.75,222.73,0.69]
[1758539216950,2.11389527,222.75,222.69,39.4904577]
[1758539217440,4.48932483,222.76,222.7,42.29420605]
[1758539217606,2.11389527,222.77,222.71,2.80389527]
[1758539217806,2.11389527,222.77,222.72,0.69]
[1758539218004,4.48833608,222.8,222.75,2.11389527]
[1758539218229,4.48813717,222.81,222.76,2.80389527]
[1758539218425,4.48790118,222.83,222.78,2.11389527]
[1758539218734,6.60179645,222.83,222.79,0.69]
[1758539219225,4.48790118,222.83,222.79,0.69]
[1758539219432,6.60179645,222.83,222.79,0.69]
[1758539219933,6.60179645,222.83,222.8,0.69]
[1758539220432,2.11389527,222.82,222.8,0.69]
[1758539220627,2.11389527,222.82,222.78,35.69]
[1758539220826,4.48790118,222.83,222.79,0.69]
[1758539221021,6.60179645,222.83,222.79,0.69]
[1758539221423,6.60179645,222.83,222.78,35.0]
[1758539221632,2.11389527,222.82,222.79,0.69]
[1758539222310,2.11389527,222.81,222.77,0.69]
[1758539222512,15.70721635,222.83,222.65,33.41446604]
[1758539222513,2.11389527,222.8,222.75,0.69]
[1758539222727,2.11389527,222.79,222.75,35.69]
[1758539222923,2.11389527,222.79,222.76,0.69]
[1758539223331,2.11389527,222.79,222.77,0.69]
[1758539223726,2.11389527,222.79,222.75,35.69]
[1758539223927,2.11389527,222.8,222.76,0.69]
[1758539224133,2.11389527,222.8,222.77,0.69]
[1758539224932,2.11389527,222.8,222.75,35.0]
[1758539225135,15.70774615,222.82,222.75,35.0]
[1758539225136,2.11389527,222.81,222.78,0.69]
[1758539225333,15.70774615,222.82,222.78,0.69]
[1758539225533,2.11389527,222.81,222.78,0.69]
[1758539225738,4.48833034,222.8,222.78,0.69]
[1758539227124,4.48833034,222.8,222.76,0.69]
[1758539227336,4.48833034,222.8,222.77,0.69]
[1758539227531,6.60222561,222.8,222.77,0.69]
[1758539227741,2.11389527,222.78,222.71,0.69]
[1758539228038,2.11389527,222.75,222.71,0.69]
[1758539228344,2.11389527,222.75,222.72,0.69]
[1758539228546,2.11389527,222.75,222.73,0.69]
[1758539229426,2.11389527,222.75,222.71,35.0]
[1758539229626,2.11389527,222.76,222.72,0.69]
[1758539229941,2.11389527,222.76,222.73,0.69]
[1758539230249,4.48893477,222.77,222.73,0.69]
[1758539230443,6.60283004,222.77,222.74,0.69]
[1758539230748,2.11389527,222.75,222.72,0.69]
[1758539230941,6.6033305,222.75,222.72,0.69]
[1758539231142,6.6033305,222.75,222.71,35.0]
[1758539231143,2.11389527,222.75,222.73,0.69]
[1758539231358,4.48892322,222.78,222.74,0.69]
[1758539231547,2.11389527,222.76,222.74,0.69]
[1758539231850,2.11389527,222.76,222.71,35.67]
[1758539232143,2.11389527,222.75,222.72,0.69]
[1758539232344,2.11389527,222.75,222.73,0.69]
[1758539232539,2.11389527,222.76,222.73,0.69]
[1758539233046,4.48933782,222.75,222.71,35.67]
[1758539233243,4.48933782,222.75,222.72,0.69]
[1758539233444,6.60323309,222.75,222.72,0.69]
[1758539235336,2.11389527,222.74,222.72,0.69]
[1758539235835,2.11389527,222.73,222.67,5.17933782]
[1758539236051,2.11389527,222.7,222.68,3.33333174]
[1758539236358,2.11389527,222.71,222.69,3.33333174]
[1758539236558,2.11389527,222.71,222.7,3.33333174]
[1758539237649,6.60403771,222.72,222.7,3.33333174]
[1758539237856,6.60403771,222.72,222.71,3.33333174]
[1758539239646,4.48974094,222.73,222.71,3.33333174]
[1758539239855,2.11389527,222.72,222.69,0.69]
[1758539240047,2.11389527,222.72,222.7,3.33169188]
[1758539240250,4.48974094,222.73,222.67,34.98]
[1758539240251,4.48974094,222.73,222.71,3.33169188]
[1758539240560,11.22063098,222.81,222.72,4.02169188]
[1758539240760,3.02408331,222.8,222.76,2.11389527]
[1758539240947,3.02408331,222.82,222.78,2.11389527]
[1758539241153,13.50469288,222.8,222.79,6.13558715]
[1758539241584,4.48729997,222.86,222.79,6.13082121]
[1758539241888,3.02303466,222.85,222.8,41.11082121]
[1758539242156,3.02303466,222.85,222.81,4.01692594]
[1758539242464,3.02303466,222.85,222.82,0.69]
[1758539242756,3.02303466,222.85,222.83,0.69]
[1758539242933,3.02303466,222.85,222.84,0.69]
[1758539243338,7.51033463,222.86,222.84,0.69]
[1758539243535,9.6242299,222.86,222.84,0.69]
[1758539243739,3.02303466,222.85,222.84,0.69]
[1758539243955,3.02303466,222.85,222.8,34.98]
[1758539244262,3.02303466,222.85,222.81,4.0159765]
[1758539244458,6.60119524,222.86,222.82,0.69]
[1758539244762,6.60119524,222.86,222.83,0.69]
[1758539245058,7.51033463,222.86,222.84,0.69]
[1758539245252,4.48729997,222.86,222.84,0.69]
[1758539246150,7.51033463,222.86,222.84,0.69]
[1758539246385,2.11389527,222.86,222.82,0.69]
[1758539246573,1.35154895,222.86,222.8,39.46831908]
[1758539246743,4.37458361,222.86,222.83,0.69]
[1758539246943,1.35154895,222.86,222.83,0.69]
[1758539247436,1.35154895,222.84,222.79,34.98]
[1758539247642,1.35154895,222.81,222.79,34.98]
[1758539247966,1.35154895,222.8,222.78,0.66]
[1758539248143,1.35154895,222.8,222.79,3.32319668]
[1758539248746,1.35154895,222.8,222.79,3.98319668]
[1758539249252,5.83983196,222.81,222.79,3.98319668]
[1758539249451,5.83983196,222.81,222.79,0.66]
[1758539250173,1.35154895,222.8,222.77,0.66]
[1758539250349,1.35154895,222.8,222.78,0.66]
[1758539250550,1.35154895,222.8,222.79,0.66]
[1758539251046,5.83987929,222.8,222.79,0.66]
[1758539251477,4.48833034,222.8,222.79,0.66]
[1758539252164,1.35154895,222.81,222.79,0.66]
[1758539252468,5.83972135,222.81,222.79,0.66]
[1758539253474,4.4879141,222.83,222.8,0.66]
[1758539253642,1.35154895,222.82,222.79,0.66]
[1758539254469,1.35154895,222.81,222.79,0.66]
[1758539255372,5.83982202,222.81,222.79,0.66]
[1758539260063,4.48827307,222.81,222.79,0.66]
[1758539264674,1.35154895,222.8,222.75,0.66]
[1758539264855,1.35154895,222.76,222.72,0.66]
[1758539265169,1.35154895,222.74,222.73,3.31995232]
[1758539265368,1.35154895,222.74,222.72,0.66]
[1758539265974,5.84118528,222.74,222.72,0.66]
[1758539266154,5.84118528,222.74,222.7,0.66]
[1758539266155,1.35154895,222.73,222.7,0.66]
[1758539266357,1.35154895,222.72,222.7,34.96]
[1758539266545,1.35154895,222.72,222.7,0.66]
[1758539266959,1.35154895,222.73,222.71,0.66]
[1758539267252,4.48963633,222.74,222.69,34.96]
[1758539267253,4.48913629,222.76,222.72,0.66]
[1758539267569,5.84068524,222.76,222.72,0.66]
[1758539268172,5.84068524,222.76,222.73,0.66]
[1758539268674,3.02018411,222.77,222.73,0.66]
[1758539268866,15.27687548,222.84,222.76,1.35154895]
[1758539268867,3.02018411,222.8,222.76,1.35154895]
[1758539269171,4.37236803,222.83,222.77,0.66]
[1758539269356,1.35154895,222.83,222.77,0.66]
[1758539269560,1.35154895,222.85,222.78,1.35154895]
[1758539269770,4.37236803,222.85,222.79,0.66]
[1758539270078,3.02081908,222.86,222.79,40.10847052]
[1758539270269,4.37236803,222.86,222.8,0.66]
[1758539271176,4.48732331,222.85,222.8,0.66]
[1758539271673,8.85949801,222.86,222.8,5.14832007]
[1758539271863,3.02081908,222.85,222.81,0.66]
[1758539272379,5.83867893,222.86,222.81,0.66]
[1758539272573,5.83867893,222.86,222.82,0.66]
[1758539272769,8.85949801,222.86,222.82,0.66]
[1758539272976,7.50819493,222.85,222.82,0.66]
[1758539273163,3.02081908,222.85,222.82,0.66]
[1758539273479,5.8383439,222.88,222.82,0.66]
[1758539273849,1.35154895,222.86,222.82,0.66]
[1758539274054,1.35154895,222.86,222.83,0.66]
[1758539274254,1.35154895,222.86,222.84,0.66]
[1758539277077,5.83869024,222.86,222.84,0.66]
[1758539278078,5.83847401,222.87,222.84,0.66]
[1758539278284,4.37236803,222.88,222.84,0.66]
[1758539278480,26.0,222.91,222.82,39.44782822]
[1758539278481,1.35154895,222.87,222.85,0.68]
[1758539279378,1.35154895,222.88,222.85,0.68]
[1758539279762,1.35154895,222.87,222.83,0.68]
[1758539279957,1.35154895,222.87,222.84,0.68]
[1758539280183,4.48712195,222.86,222.84,0.68]
[1758539281565,4.48694901,222.87,222.85,0.68]
[1758539282357,4.48694901,222.87,222.79,4.48850042]
[1758539282358,5.83849796,222.87,222.79,4.48850042]
[1758539282563,5.83849796,222.87,222.75,11.22294033]
[1758539282564,1.35154895,222.84,222.81,0.68]
[1758539282893,1.35154895,222.83,222.8,34.94]
[1758539283185,1.35154895,222.84,222.81,0.68]
[1758539283387,3.02081908,222.86,222.82,0.68]
[1758539283568,3.02066619,222.9,222.82,2.03154895]
[1758539283761,1.35154895,222.91,222.83,0.68]
[1758539284274,4.48631673,222.9,222.84,34.94]
[1758539284473,4.48631673,222.9,222.85,0.68]
[1758539284992,1.35154895,222.91,222.85,0.68]
[1758539285574,7.50660696,222.92,222.85,0.68]
[1758539285775,1.35154895,222.91,222.85,0.68]
[1758539286288,1.35154895,222.91,222.86,4.48712195]
[1758539286492,1.35154895,222.91,222.87,0.68]
[1758539286866,3.02066619,222.92,222.83,5.84854895]
[1758539286867,7.50664322,222.92,222.88,0.68]
[1758539287067,1.35154895,222.89,222.86,35.62]
[1758539287288,7.50664322,222.92,222.87,0.68]
[1758539287495,1.35154895,222.88,222.86,34.94]
[1758539287795,7.50664322,222.92,222.83,15.70704123]
[1758539287969,1.35154895,222.89,222.86,34.94]
[1758539288265,1.35154895,222.89,222.87,5.16690229]
[1758539288462,1.35154895,222.89,222.88,0.68]
[1758539289881,0.1,222.95,222.88,0.68]
[1758539290183,1.35154895,222.91,222.88,0.68]
[1758539290485,4.48563223,222.94,222.88,5.16671071]
[1758539290692,1.35154895,222.91,222.89,0.68]
[1758539290898,1.35154895,222.91,222.88,4.48671071]
[1758539291075,1.35154895,222.91,222.9,0.68]
[1758539292701,1.35154895,222.91,222.88,5.16671071]
[1758539292871,1.35154895,222.91,222.88,4.48671071]
[1758539293075,1.35154895,222.91,222.89,0.68]
[1758539293574,1.35154895,222.91,222.9,0.68]
[1758539294880,4.48551179,222.94,222.9,0.68]
[1758539295064,1.35154895,222.91,222.9,0.68]
[1758539295268,1.35154895,222.91,222.88,39.4067078]
[1758539295605,1.35154895,222.91,222.89,0.67]
[1758539295775,0.1,222.95,222.89,0.67]
[1758539295980,1.35154895,222.92,222.89,0.67]
[1758539296476,1.35154895,222.91,222.88,39.4067078]
[1758539296683,1.35154895,222.91,222.89,0.67]
[1758539296893,4.48559773,222.94,222.9,0.67]
[1758539297095,1.35154895,222.92,222.9,0.67]
[1758539297609,1.35154895,222.92,222.91,0.67]
[1758539299078,1.35154895,222.92,222.91,35.59]
[1758539299482,1.35154895,222.92,222.91,0.67]
[1758539299799,1.35154895,222.92,222.88,0.67]
[1758539299970,1.35154895,222.9,222.89,34.92]
[1758539300290,1.35154895,222.9,222.85,4.48729587]
[1758539300482,15.79858929,222.95,222.87,0.67]
[1758539300682,1.35154895,222.89,222.85,0.67]
[1758539300890,1.35154895,222.87,222.86,34.92]
[1758539301201,4.48642065,222.9,222.86,0.67]
[1758539301493,1.35154895,222.87,222.85,39.40729795]
[1758539302074,1.35154895,222.87,222.86,0.67]
[1758539302274,1.35154895,222.87,222.86,35.59]
[1758539302485,1.35154895,222.87,222.86,0.67]
[1758539302682,1.35154895,222.87,222.85,34.92]
[1758539302903,1.35154895,222.87,222.85,35.59]
[1758539303273,1.35154895,222.87,222.86,0.67]
[1758539303489,4.4863243,222.9,222.86,0.67]
[1758539303689,1.35154895,222.89,222.86,0.67]
[1758539303885,0.1,222.95,222.86,0.67]
[1758539304203,1.35154895,222.93,222.87,13.59559401]
[1758539304400,1.35154895,222.93,222.88,0.67]
[1758539304773,1.35154895,222.93,222.89,34.92]
[1758539304978,1.35154895,222.93,222.9,0.67]
[1758539305279,1.35154895,222.93,222.91,0.67]
[1758539306995,1.35154895,222.94,222.92,0.67]
[1758539307204,1.35154895,222.94,222.93,0.72]
[1758539308185,4.58532556,222.95,222.91,0.72]
[1758539308399,1.35154895,222.94,222.92,0.72]
[1758539308607,2.11012312,222.94,222.92,0.72]
[1758539309098,2.11012312,222.93,222.88,0.72]
[1758539309297,2.11012312,222.89,222.88,0.72]
[1758539309599,2.11012312,222.89,222.88,35.62]
[1758539310782,2.11012312,222.89,222.88,0.72]
[1758539310984,2.11012312,222.89,222.88,35.62]
[1758539312805,15.69929128,222.94,222.88,35.62]
[1758539313406,2.11012312,222.89,222.88,35.62]
[1758539314211,2.11012312,222.89,222.88,0.72]
[1758539314499,2.11012312,222.89,222.88,40.117]
[1758539314691,2.11012312,222.89,222.88,35.62]
[1758539314894,2.11012312,222.9,222.88,35.62]
[1758539315098,2.11012312,222.9,222.89,0.72]
[1758539316002,15.69929128,222.94,222.89,0.72]
[1758539316215,2.11012312,222.9,222.89,0.72]
[1758539316395,2.11012312,222.9,222.89,34.9]
[1758539317710,6.5964845,222.9,222.87,34.9]
[1758539318108,2.11012312,222.88,222.87,34.9]
[1758539318492,2.11012312,222.89,222.87,35.62]
[1758539318701,2.11012312,222.89,222.88,0.72]
[1758539318908,2.11012312,222.89,222.87,34.9]
[1758539319088,2.11012312,222.88,222.87,35.62]
[1758539319291,0.1,222.95,222.87,35.62]
[1758539319508,6.59585933,222.93,222.88,0.72]
[1758539319815,2.11012312,222.91,222.89,34.9]
[1758539320014,2.11012312,222.91,222.85,4.48715077]
[1758539320315,0.1,222.95,222.94,26.0]
[1758539320493,0.1,222.95,222.94,76.60571713]
[1758539320694,0.1,222.95,222.94,77.32571713]
[1758539321600,0.1,222.95,222.94,81.81122892]
[1758539322818,0.1,223.04,222.99,30.496]
[1758539323110,0.1,223.04,223.03,46.20171713]
[1758539323420,0.1,223.04,223.03,80.39159401]
[1758539323601,0.1,223.04,223.03,46.92171713]
[1758539323808,0.1,223.04,223.03,87.70541887]
[1758539324114,0.1,223.04,223.03,83.22941887]
[1758539327511,0.1,223.04,223.03,81.05929575]
[1758539327697,0.1,223.04,223.03,83.16941887]
[1758539329318,0.1,223.14,223.04,13.59559401]
[1758539329531,0.1,223.14,223.06,2.11012312]
[1758539329708,0.1,223.14,223.11,2.11012312]
[1758539329908,0.1,223.14,223.12,36.32]
[1758539331799,0.1,223.14,223.13,2.11012312]
[1758539332626,0.1,223.14,223.12,40.80187274]
[1758539332816,0.1,223.14,223.12,43.63199586]
[1758539333014,0.1,223.14,223.13,0.72]
[1758539334833,0.1,223.14,223.13,5.20169228]
[1758539335330,0.1,223.14,223.13,18.79728629]
[1758539335708,0.1,223.14,223.13,13.59559401]
[1758539335905,0.1,223.14,223.12,4.4817802]
[1758539336109,0.1,223.14,223.13,36.22]
[1758539336723,0.1,223.14,223.12,0.72]
[1758539337006,0.1,223.14,223.13,36.2]
[1758539337212,0.1,223.14,223.13,38.31012312]
[1758539337435,0.1,223.14,223.13,38.99012312]
[1758539337810,0.1,223.14,223.13,36.88]
[1758539338006,0.1,223.14,223.13,36.2]
[1758539338938,0.1,223.14,223.13,40.68169228]
[1758539339431,0.1,223.14,223.13,43.4718154]
[1758539339929,0.1,223.14,223.13,41.36169228]
[1758539340819,0.1,223.14,223.13,54.95728629]
[1758539341021,0.1,223.14,223.13,57.06740941]
[1758539341213,0.1,223.14,223.13,57.00740941]
[1758539341936,0.1,223.14,223.13,54.89728629]
[1758539342437,0.1,223.14,223.13,57.00740941]
[1758539344619,0.1,223.14,223.13,54.89728629]
[1758539344923,0.1,223.14,223.13,57.00740941]
[1758539345420,0.1,223.14,223.13,20.86740941]
[1758539345622,0.1,223.14,223.13,56.94740941]
[1758539346458,0.1,223.14,223.13,54.83728629]
[1758539346648,0.1,223.14,223.13,56.94740941]
[1758539347439,0.1,223.14,223.13,137.54740941]
[1758539349437,0.1,223.14,223.13,99.35728629]
[1758539349618,0.1,223.14,223.13,135.35728629]
[1758539349938,0.1,223.14,223.13,121.76169228]
[1758539350838,0.1,223.14,223.13,123.8718154]
[1758539351218,0.1,223.14,223.13,54.75728629]
[1758539351421,0.1,223.14,223.13,56.86740941]
[1758539351743,0.1,223.14,223.13,18.75728629]
[1758539351956,0.1,223.14,223.13,66.56169228]
[1758539352120,0.1,223.14,223.13,40.56169228]
[1758539353925,0.1,223.14,223.12,13.59559401]
[1758539354124,0.1,223.14,223.13,36.08]
[1758539355219,0.1,223.14,223.13,40.56169228]
[1758539356335,0.1,223.14,223.13,121.16169228]
[1758539356734,0.1,223.14,223.13,121.85169228]
[1758539357341,0.1,223.14,223.13,80.6]
[1758539357652,0.21,223.14,223.12,36.0]
[1758539357944,2.11012312,223.13,223.12,36.0]
[1758539358526,2.22012312,223.13,223.12,36.0]
[1758539358745,2.22012312,223.13,223.11,36.0]
[1758539358940,2.11012312,223.12,223.11,36.0]
[1758539359137,2.11012312,223.12,223.08,4.48268277]
[1758539359138,2.11012312,223.12,223.07,94.04194521]
[1758539359337,4.58156868,223.14,223.08,35.98]
[1758539359338,2.11012312,223.1,223.08,35.98]
[1758539360054,2.11012312,223.1,223.07,85.77283586]
[1758539360230,2.11012312,223.1,223.08,35.98]
[1758539360635,2.11012312,223.11,223.08,35.98]
[1758539360956,2.11012312,223.11,223.08,41.15268893]
[1758539361533,4.5815156,223.14,223.08,41.15268893]
[1758539361733,2.11012312,223.12,223.08,41.15268893]
[1758539363854,2.11012312,223.12,223.09,0.69]
[1758539364154,2.11012312,223.12,223.1,35.92]
[1758539365252,2.11012312,223.11,223.1,35.92]
[1758539365431,4.5815156,223.14,223.1,35.92]
[1758539365760,2.11012312,223.11,223.1,35.92]
[1758539366056,2.11012312,223.12,223.1,35.92]
[1758539366432,4.5815156,223.14,223.1,35.92]
[1758539366726,2.11012312,223.12,223.1,35.92]
[1758539368558,1.3483356,223.12,223.1,35.92]
[1758539368730,4.58149368,223.14,223.1,35.92]
[1758539368925,1.3483356,223.12,223.1,35.92]
[1758539369349,0.1,223.14,223.11,0.68]
[1758539369551,0.1,223.14,223.12,35.82]
[1758539369748,0.1,223.14,223.13,0.68]
[1758539370336,0.1,223.14,223.13,36.52]
[1758539371635,0.1,223.14,223.1,4.48228189]
[1758539371938,0.1,223.14,223.11,36.5]
[1758539372352,0.1,223.14,223.12,0.68]
[1758539372651,0.1,223.14,223.1,4.48228189]
[1758539372652,0.1,223.14,223.13,36.48]
[1758539376266,1.4483356,223.14,223.13,36.48]
[1758539379750,0.1,223.14,223.13,36.48]
[1758539380140,1.4483356,223.14,223.13,35.68]
[1758539380340,1.4483356,223.14,223.13,36.36]
[1758539381955,1.4483356,223.14,223.11,35.68]
[1758539382154,1.3483356,223.12,223.11,35.68]
[1758539382547,1.3483356,223.12,223.08,0.68]
[1758539382867,1.3483356,223.09,223.07,4.48270373]
[1758539383065,1.3483356,223.09,223.08,35.66]
[1758539383544,1.3483356,223.09,223.08,36.34]
[1758539383736,1.3483356,223.09,223.08,40.82269679]
[1758539384156,1.3483356,223.1,223.08,40.82269679]
[1758539384460,1.3483356,223.1,223.09,0.68]
[1758539386047,1.3483356,223.1,223.09,36.3]
[1758539386366,0.1,223.14,223.09,40.78246641]
[1758539386540,1.3483356,223.11,223.09,40.78246641]
[1758539386743,1.3483356,223.11,223.09,36.3]
[1758539387448,1.3483356,223.12,223.09,36.3]
[1758539387964,1.3483356,223.12,223.1,0.68]
[1758539388160,1.3483356,223.12,223.11,35.6]
[1758539390140,1.3483356,223.12,223.11,36.28]
[1758539390870,1.3483356,223.12,223.11,35.6]
[1758539392651,1.3483356,223.13,223.11,36.28]
[1758539392863,1.3483356,223.13,223.12,0.68]
[1758539393063,1.4483356,223.14,223.12,0.68]
[1758539393250,1.4483356,223.14,223.13,35.52]
[1758539393574,1.4483356,223.14,223.13,36.2]
[1758539394772,1.4483356,223.14,223.13,35.52]
[1758539394961,5.92982704,223.14,223.13,35.52]
[1758539395274,1.4483356,223.14,223.13,35.52]
[1758539395443,0.1,223.14,223.13,35.52]
[1758539395647,1.4483356,223.14,223.13,35.52]
[1758539396079,1.4483356,223.14,223.13,36.2]
[1758539396273,1.4483356,223.14,223.13,35.52]
[1758539397374,1.4483356,223.14,223.13,36.23]
[1758539398166,0.1,223.14,223.13,36.23]
[1758539398460,1.4483356,223.14,223.13,36.23]
[1758539398659,1.4483356,223.14,223.13,35.52]
[1758539398862,1.4483356,223.14,223.13,36.23]
[1758539399271,5.92982704,223.14,223.08,0.71]
[1758539399569,5.92982704,223.14,223.03,11.2088837]
[1758539399570,1.3483356,223.09,223.03,0.71]
[1758539399768,3.02328669,223.1,223.05,35.44]
[1758539399978,3.02328669,223.09,223.06,0.71]
[1758539400272,3.02328669,223.08,223.06,0.71]
[1758539400463,3.02328669,223.1,223.05,35.44]
[1758539400668,3.02328669,223.09,223.05,36.15]
[1758539400974,26.0,223.07,223.05,35.44]
[1758539401155,1.3483356,223.06,223.05,35.44]
[1758539401352,1.3483356,223.06,223.05,36.15]
[1758539401861,1.3483356,223.06,223.05,35.44]
[1758539402049,1.3483356,223.06,223.05,36.15]
[1758539404475,5.83143431,223.06,223.05,35.44]
[1758539404773,5.83143431,223.06,223.02,0.71]
[1758539404956,4.48309871,223.06,223.05,35.5]
[1758539405149,4.48309871,223.06,223.05,36.21]
[1758539405553,4.48309871,223.06,223.05,35.5]
[1758539405772,4.48309871,223.06,223.03,0.71]
[1758539406280,4.48289774,223.07,223.04,35.46]
[1758539406463,4.48289774,223.07,223.03,0.71]
[1758539406669,4.48289774,223.07,223.04,35.46]
[1758539407277,1.3483356,223.05,223.04,35.46]
[1758539407762,1.4583356,223.05,222.99,0.71]
[1758539407966,0.11,223.05,223.02,35.44]
[1758539408280,26.0,223.03,223.02,35.44]
[1758539408987,4.48350071,223.04,223.02,35.44]
[1758539409156,27.3483356,223.03,223.02,35.44]
[1758539410079,5.83203734,223.03,223.02,35.44]
[1758539410257,11.20724436,223.07,223.02,0.71]
[1758539410569,1.3483356,223.03,222.97,0.71]
[1758539410769,1.3483356,222.98,222.97,36.13]
[1758539412575,5.83304274,222.98,222.96,35.42]
[1758539412779,1.3483356,222.97,222.96,36.13]
[1758539414082,4.48510943,222.96,222.89,4.48634997]
[1758539414391,4.48510943,222.96,222.92,0.71]
[1758539414879,4.48510943,222.96,222.93,0.71]
[1758539415071,4.48510943,222.96,222.94,35.4]
[1758539415260,11.32089801,223.0,222.94,35.4]
[1758539415261,30.48490828,222.97,222.94,35.4]
[1758539415464,1.3483356,222.95,222.94,35.4]
[1758539415882,1.3483356,222.95,222.94,36.12]
[1758539416059,30.48490828,222.97,222.94,36.12]
[1758539416256,1.3483356,222.95,222.94,36.12]
[1758539416686,30.48490828,222.97,222.94,36.12]
[1758539416866,1.3483356,222.95,222.94,0.72]
[1758539427493,39.59559401,222.94,222.87,0.2]
[1758539427668,27.3483356,222.88,222.86,0.2]
[1758539427990,4.48692062,222.87,222.86,0.2]
[1758539428595,6.59951888,222.87,222.86,0.2]
[1758539429180,6.70951888,222.87,222.86,0.2]
[1758539429484,6.59951888,222.87,222.86,0.2]
[1758539430184,6.70951888,222.87,222.86,0.2]
[1758539430691,26.0,222.84,222.8,0.66]
[1758539430874,2.11259826,222.81,222.8,0.66]
[1758539432398,11.21605165,222.9,222.8,5.14833034]
[1758539432688,2.11259826,222.85,222.81,0.66]
[1758539432997,2.11259826,222.86,222.81,0.66]
[1758539433778,2.11259826,222.87,222.81,0.66]
[1758539434177,2.11259826,222.87,222.82,4.48792747]
[1758539434381,2.11259826,222.87,222.83,35.5]
[1758539434669,2.11259826,222.88,222.84,0.66]
[1758539435995,2.11259826,222.87,222.84,0.66]
[1758539436289,2.11259826,222.87,222.85,4.48732331]
[1758539436493,2.11259826,222.87,222.86,0.66]
[1758539437080,2.11259826,222.87,222.85,35.5]
[1758539437281,2.11259826,222.87,222.85,36.16]
[1758539437990,2.11259826,222.87,222.86,0.66]
[1758539438372,11.21347008,222.95,222.86,5.14712195]
[1758539438691,2.11259826,222.92,222.87,0.66]
[1758539439786,2.11259826,222.92,222.87,5.14672108]
[1758539440096,2.11259826,222.89,222.88,36.12]
[1758539440393,2.11259826,222.9,222.88,36.12]
[1758539440584,2.11259826,222.9,222.89,0.66]
[1758539441394,2.11259826,222.9,222.88,35.46]
[1758539441568,2.11259826,222.89,222.88,36.12]